bitfinex-derivatives/quotes_SOLF0:USTF0_20250823
["timestamp","ask_amount","ask_price","bid_price","bid_amount"]
[1755951857054,2.77,202.72,202.62,2.81]
[1755951857352,2.77,202.72,202.63,10.56388985]
[1755951857553,4.9357,202.69,202.64,10.56388985]
[1755951857755,2.77,202.67,202.65,10.56388985]
[1755951857954,2.77,202.67,202.66,10.56388985]
[1755951858756,2.77,202.67,202.66,5.97792936]
[1755951858956,2.77,202.67,202.64,2.81]
[1755951859155,2.77,202.67,202.65,5.97885266]
[1755951859456,2.77,202.67,202.64,2.81]
[1755951859660,2.77,202.67,202.65,5.97855389]
[1755951859957,2.77,202.67,202.64,2.81]
[1755951861450,2.77,202.7,202.6,72.99068283]
[1755951861651,2.77,202.7,202.61,10.56895484]
[1755951861850,2.77,202.7,202.62,10.56895484]
[1755951862058,2.77,202.7,202.63,6.32287216]
[1755951862258,2.77,202.7,202.64,4.58826368]
[1755951862460,2.77,202.69,202.65,4.58826368]
[1755951862756,2.77,202.67,202.6,72.99068283]
[1755951862958,2.77,202.67,202.61,10.92348687]
[1755951863255,2.77,202.65,202.62,6.67716922]
[1755951863560,2.77,202.64,202.63,6.67748212]
[1755951864055,2.77,202.71,202.64,2.81]
[1755951864256,2.77,202.71,202.65,4.94239452]
[1755951864456,2.77,202.71,202.64,2.81]
[1755951864648,2.77,202.71,202.65,4.94320588]
[1755951864849,2.77,202.71,202.64,2.81]
[1755951865054,2.77,202.71,202.65,4.96227659]
[1755951865249,2.77,202.71,202.67,2.81]
[1755951865862,2.77,202.71,202.68,2.81]
[1755951866060,2.77,202.71,202.59,4.15291606]
[1755951866061,2.77,202.72,202.63,2.81]
[1755951866360,2.77,202.72,202.64,10.94343108]
[1755951866561,2.77,202.72,202.65,10.94365744]
[1755951866761,2.77,202.72,202.66,4.96156564]
[1755951866956,152.82078843,202.76,202.67,4.96156564]
[1755951867158,2.77,202.75,202.63,2.81]
[1755951867359,2.77,202.75,202.64,10.94634504]
[1755951867559,2.77,202.75,202.65,10.94634504]
[1755951867755,2.77,202.75,202.66,4.96308211]
[1755951867960,2.77,202.75,202.67,4.96308211]
[1755951868156,2.77,202.75,202.63,2.81]
[1755951868360,2.77,202.75,202.64,10.94818827]
[1755951868561,7.705,202.72,202.65,10.94818827]
[1755951868762,7.705,202.72,202.66,4.96395225]
[1755951869062,2.77,202.7,202.67,4.96395225]
[1755951869265,2.77,202.7,202.63,2.81]
[1755951869469,2.77,202.7,202.64,10.94970216]
[1755951869665,2.77,202.7,202.66,2.81]
[1755951869965,2.77,202.7,202.67,4.9642328]
[1755951870165,2.77,202.7,202.68,4.9642328]
[1755951870366,2.77,202.7,202.63,7.7469]
[1755951870558,2.77,202.7,202.65,2.81]
[1755951870760,4.9353,202.71,202.66,15.37070164]
[1755951870960,7.7053,202.71,202.68,2.81]
[1755951871459,7.7053,202.71,202.63,4.9369]
[1755951871460,2.77,202.7,202.69,4.96617784]
[1755951878574,4.9353,202.71,202.69,4.96617784]
[1755951878769,4.9353,202.71,202.68,2.61]
[1755951878976,2.82,202.7,202.69,4.96907618]
[1755951879675,2.82,202.7,202.68,2.61]
[1755951879875,2.82,202.7,202.69,4.96928849]
[1755951880880,4.9353,202.71,202.69,4.96928849]
[1755951881070,4.9353,202.71,202.68,2.61]
[1755951881274,4.9353,202.71,202.69,4.97011644]
[1755951881474,4.9353,202.71,202.68,2.61]
[1755951881677,4.9353,202.71,202.69,4.97056838]
[1755951881976,4.9353,202.71,202.68,2.61]
[1755951882281,4.9353,202.71,202.7,2.61]
[1755951882480,2.82,202.78,202.71,2.61]
[1755951882874,2.82,202.78,202.72,11.12720933]
[1755951883075,7.7539,202.77,202.74,2.61]
[1755951883774,4.9339,202.77,202.66,2.61]
[1755951883981,4.9339,202.77,202.71,2.61]
[1755951884182,4.9339,202.77,202.72,11.23489619]
[1755951884481,4.9339,202.77,202.7,4.9354]
[1755951884482,4.9339,202.77,202.75,2.61]
[1755951886679,4.9339,202.77,202.72,2.61]
[1755951886881,4.9339,202.77,202.74,2.61]
[1755951887074,4.9339,202.77,202.75,7.64141192]
[1755951887380,4.9339,202.77,202.76,2.61]
[1755951891583,4.9339,202.77,202.71,4.9352]
[1755951891784,4.9339,202.77,202.73,2.61]
[1755951891785,7.7539,202.77,202.73,2.61]
[1755951892084,7.7539,202.77,202.74,5.02923141]
[1755951892283,7.7539,202.77,202.74,2.61]
[1755951894290,2.82,202.76,202.74,2.61]
[1755951894892,4.9339,202.77,202.74,2.61]
[1755951895187,4.9339,202.77,202.7,4.9355]
[1755951895399,2.82,202.74,202.63,2.61]
[1755951895588,6.27098843,202.75,202.64,15.59100367]
[1755951895589,2.82,202.72,202.64,15.59100367]
[1755951895886,4.9357,202.7,202.65,11.2950044]
[1755951896086,7.7557,202.7,202.66,12.16906437]
[1755951896292,2.82,202.69,202.67,9.55906437]
[1755951896484,2.82,202.69,202.66,2.61]
[1755951896686,2.82,202.69,202.67,9.50955608]
[1755951896982,2.82,202.69,202.66,2.61]
[1755951897183,2.82,202.69,202.67,9.50955608]
[1755951897493,2.82,202.69,202.66,2.61]
[1755951897694,7.7559,202.69,202.67,9.51092021]
[1755951897893,7.7559,202.69,202.66,2.61]
[1755951898198,7.7559,202.69,202.67,9.51092021]
[1755951898491,7.7559,202.69,202.66,2.61]
[1755951898695,7.7559,202.69,202.67,9.51080457]
[1755951898890,7.7559,202.69,202.66,2.61]
[1755951899192,7.7559,202.69,202.67,9.51084809]
[1755951899398,7.7559,202.69,202.66,2.61]
[1755951899590,7.7559,202.69,202.67,9.51147014]
[1755951899791,7.7559,202.69,202.66,2.61]
[1755951899992,7.7559,202.69,202.67,9.51072934]
[1755951900189,2.82,202.7,202.61,2.61]
[1755951900394,2.82,202.7,202.62,11.24787738]
[1755951900592,6.27098843,202.69,202.63,9.51157588]
[1755951900796,7.7565,202.67,202.64,9.51157588]
[1755951900990,7.7565,202.67,202.65,4.98174007]
[1755951901190,7.7565,202.67,202.63,2.61]
[1755951901390,7.7565,202.67,202.64,9.49736991]
[1755951901591,7.7565,202.67,202.63,2.61]
[1755951901894,7.7565,202.67,202.64,9.495851]
[1755951902193,7.7565,202.67,202.63,2.61]
[1755951902385,7.7565,202.67,202.64,9.49431024]
[1755951902591,7.7565,202.67,202.63,2.61]
[1755951902801,4.9359,202.69,202.65,2.61]
[1755951903100,2.82,202.69,202.66,12.10185951]
[1755951903398,9.05098843,202.71,202.68,2.63]
[1755951903793,6.27098843,202.71,202.58,4.14919826]
[1755951903994,2.78,202.7,202.64,2.63]
[1755951904295,2.78,202.68,202.65,7.60800867]
[1755951904500,2.78,202.68,202.65,2.63]
[1755951904694,2.78,202.76,202.67,2.63]
[1755951904895,2.78,202.76,202.68,13.77901653]
[1755951905095,2.78,202.76,202.7,2.63]
[1755951905597,121.78,202.78,202.72,2.63]
[1755951905796,4.9345,202.75,202.73,4.50718872]
[1755951906000,2.78,202.74,202.68,2.63]
[1755951906199,2.78,202.74,202.7,2.63]
[1755951906501,2.78,202.74,202.71,4.78963269]
[1755951906697,4.9345,202.75,202.72,7.41963269]
[1755951906900,7.7145,202.75,202.73,4.78949998]
[1755951907100,7.7145,202.75,202.72,2.63]
[1755951907289,7.7145,202.75,202.69,2.63]
[1755951907494,7.7145,202.75,202.71,2.63]
[1755951907697,7.7145,202.75,202.72,4.79038586]
[1755951907900,7.7145,202.75,202.71,2.63]
[1755951908096,7.7145,202.75,202.72,4.79138848]
[1755951908295,7.7145,202.75,202.71,2.63]
[1755951908496,7.7145,202.75,202.72,4.79184337]
[1755951908691,7.7145,202.75,202.71,2.63]
[1755951908998,2.78,202.74,202.72,4.79140482]
[1755951909193,2.78,202.74,202.71,2.63]
[1755951909402,4.9345,202.75,202.72,9.99892595]
[1755951909602,4.9345,202.75,202.73,7.42096711]
[1755951909902,4.9339,202.77,202.74,2.63]
[1755951910098,4.9339,202.77,202.75,2.63]
[1755951910801,4.9342,202.76,202.68,2.63]
[1755951910994,4.9342,202.76,202.7,2.63]
[1755951911196,4.9342,202.76,202.72,2.63]
[1755951911498,7.7142,202.76,202.73,12.62765429]
[1755951911700,7.7142,202.76,202.74,4.79042262]
[1755951912003,7.7142,202.76,202.73,2.63]
[1755951912202,7.7142,202.76,202.74,4.79031319]
[1755951912401,7.7142,202.76,202.73,2.63]
[1755951912600,7.7142,202.76,202.74,4.79020589]
[1755951912904,7.7142,202.76,202.73,2.63]
[1755951913103,7.7142,202.76,202.74,4.78981975]
[1755951913308,7.7142,202.76,202.73,2.63]
[1755951913600,7.7142,202.76,202.74,4.78959937]
[1755951913802,7.7142,202.76,202.73,2.63]
[1755951913995,7.7142,202.76,202.74,4.78951647]
[1755951914302,7.7142,202.76,202.73,2.63]
[1755951915100,7.7142,202.76,202.74,4.78905572]
[1755951915303,7.7142,202.76,202.73,2.63]
[1755951915699,4.9342,202.76,202.68,4.9359]
[1755951915902,7.7145,202.75,202.69,18.71259063]
[1755951916098,7.7145,202.75,202.71,2.63]
[1755951916294,7.7145,202.75,202.72,5.20559202]
[1755951916497,7.7145,202.75,202.73,4.78891443]
[1755951916702,7.7145,202.75,202.71,2.63]
[1755951916902,7.7145,202.75,202.72,9.99469332]
[1755951917096,7.7145,202.75,202.71,2.63]
[1755951917409,4.9348,202.74,202.72,9.99469332]
[1755951917595,4.9348,202.74,202.66,6.27098843]
[1755951917799,4.9348,202.74,202.71,2.63]
[1755951917996,4.9348,202.74,202.72,9.99507936]
[1755951918203,4.9348,202.74,202.71,2.63]
[1755951918400,7.7148,202.74,202.72,5.20586326]
[1755951918706,4.9348,202.74,202.67,2.63]
[1755951918908,4.9348,202.74,202.68,14.3522866]
[1755951919108,4.9348,202.74,202.69,9.99661516]
[1755951919308,7.7148,202.74,202.7,12.62661516]
[1755951919499,7.7148,202.74,202.71,9.99661516]
[1755951919802,7.7148,202.74,202.7,2.63]
[1755951920000,7.7148,202.74,202.71,9.99667023]
[1755951920195,7.7148,202.74,202.7,2.63]
[1755951920396,7.7148,202.74,202.71,9.99620146]
[1755951920603,7.7148,202.74,202.7,2.63]
[1755951920804,7.7148,202.74,202.71,9.99673258]
[1755951921005,7.7148,202.74,202.71,2.63]
[1755951921616,7.7148,202.74,202.72,4.78999126]
[1755951921810,7.7148,202.74,202.71,2.63]
[1755951922006,7.7148,202.74,202.72,4.78974046]
[1755951922311,7.7148,202.74,202.71,2.63]
[1755951922508,7.7148,202.74,202.72,4.78989535]
[1755951922701,7.7148,202.74,202.71,2.63]
[1755951922905,7.7148,202.74,202.72,4.78989535]
[1755951923107,7.7148,202.74,202.71,2.63]
[1755951923308,7.7148,202.74,202.72,4.78989535]
[1755951923506,7.7148,202.74,202.71,2.63]
[1755951923708,7.7148,202.74,202.72,4.79006608]
[1755951923910,7.7148,202.74,202.71,2.63]
[1755951924112,7.7148,202.74,202.72,4.79006605]
[1755951924309,7.7148,202.74,202.71,2.63]
[1755951924511,7.7148,202.74,202.72,9.99730109]
[1755951924710,7.7148,202.74,202.73,4.79025298]
[1755951925510,7.7148,202.74,202.71,2.63]
[1755951925712,7.7148,202.74,202.72,10.01757537]
[1755951925916,7.7148,202.74,202.73,4.79045744]
[1755951927513,4.9348,202.74,202.73,4.79045744]
[1755951929315,7.7148,202.74,202.73,4.79045744]
[1755951930210,4.9348,202.74,202.73,4.79045744]
[1755951931522,7.7148,202.74,202.73,4.79045744]
[1755951935011,7.7148,202.74,202.71,2.63]
[1755951935212,7.7148,202.74,202.72,10.0388583]
[1755951935415,4.935,202.73,202.71,2.63]
[1755951935611,4.935,202.73,202.72,4.81319913]
[1755951935812,7.555,202.73,202.72,4.81319913]
[1755951936020,7.555,202.73,202.68,2.83]
[1755951936021,2.62,202.72,202.68,2.83]
[1755951936321,2.62,202.71,202.69,10.04571815]
[1755951936513,7.5553,202.71,202.7,10.04571815]
[1755951936923,4.9353,202.71,202.7,10.04571815]
[1755951937124,4.935,202.73,202.7,10.04571815]
[1755951937317,7.555,202.73,202.71,4.8146208]
[1755951937516,7.555,202.73,202.7,2.83]
[1755951937821,7.555,202.73,202.71,10.04542714]
[1755951938120,4.9345,202.75,202.72,4.81448156]
[1755951938422,2.62,202.77,202.74,2.83]
[1755951938812,4.9342,202.76,202.74,2.83]
[1755951939115,4.9342,202.76,202.75,4.81238835]
[1755951939923,4.9342,202.76,202.75,10.03943504]
[1755951940920,4.9342,202.76,202.75,10.0388916]
[1755951944221,126.7138,202.78,202.76,2.83]
[1755951944423,126.7138,202.78,202.75,10.0388916]
[1755951944424,126.7138,202.78,202.77,2.83]
[1755951944621,126.7138,202.78,202.77,7.6426928]
[1755951945120,4.9332,202.8,202.77,7.6426928]
[1755951945325,4.9332,202.8,202.78,10.03909398]
[1755951945524,4.9332,202.8,202.79,10.03909398]
[1755951945922,4.9332,202.8,202.79,12.86909398]
[1755951946124,126.6328,202.82,202.79,10.03909398]
[1755951946325,126.6328,202.82,202.81,2.83]
[1755951946627,126.6328,202.82,202.81,12.86095399]
[1755951947524,126.6328,202.82,202.81,7.63903633]
[1755951947722,126.6328,202.82,202.81,12.86084007]
[1755951947921,129.2528,202.82,202.81,10.03084007]
[1755951948116,129.2528,202.82,202.81,4.80903633]
[1755951948324,126.6328,202.82,202.81,4.80903633]
[1755951948721,129.2528,202.82,202.81,4.80903633]
[1755951948922,4.9328,202.82,202.81,7.63903633]
[1755951949220,4.9323,202.84,202.81,7.63903633]
[1755951949418,7.5523,202.84,202.81,2.83]
[1755951949620,7.5523,202.84,202.82,5.33912834]
[1755951949822,4.9326,202.83,202.81,2.83]
[1755951950022,4.9326,202.83,202.82,5.33912569]
[1755951950416,4.9326,202.83,202.81,2.83]
[1755951951827,7.5526,202.83,202.81,2.83]
[1755951952722,7.5526,202.83,202.82,10.13895141]
[1755951952921,126.6321,202.85,202.82,10.13895141]
[1755951953226,126.6321,202.85,202.84,2.83]
[1755951953426,4.9321,202.85,202.84,2.83]
[1755951954024,124.3,202.88,202.84,2.83]
[1755951954025,2.62,202.87,202.84,2.83]
[1755951955424,2.62,202.87,202.79,4.9333]
[1755951955624,2.62,202.87,202.84,2.83]
[1755951955919,2.62,202.87,202.8,2.83]
[1755951956124,2.62,202.87,202.81,10.14973385]
[1755951956323,2.62,202.87,202.83,2.83]
[1755951956525,2.62,202.87,202.76,6.27098843]
[1755951956725,2.62,202.87,202.84,2.83]
[1755951960630,7.5516,202.87,202.79,2.83]
[1755951960832,7.5516,202.87,202.8,10.11005542]
[1755951961027,7.5516,202.87,202.81,2.83]
[1755951962525,4.9319,202.86,202.76,4.9341]
[1755951962725,2.62,202.87,202.77,8.17515098]
[1755951963028,2.62,202.87,202.78,5.34515098]
[1755951963325,2.62,202.87,202.77,2.83]
[1755951963524,4.9327,202.83,202.77,2.83]
[1755951964730,2.81,202.82,202.79,2.69]
[1755951965121,2.81,202.81,202.74,2.69]
[1755951965326,2.81,202.81,202.76,2.69]
[1755951965528,2.81,202.81,202.78,2.69]
[1755951965830,2.81,202.81,202.79,5.34515075]
[1755951966034,2.81,202.81,202.78,2.69]
[1755951966331,2.81,202.81,202.79,10.1054218]
[1755951966533,2.81,202.81,202.78,2.69]
[1755951966734,2.81,202.81,202.79,10.10571574]
[1755951967030,4.9327,202.83,202.75,2.69]
[1755951967231,4.9327,202.83,202.77,2.69]
[1755951967434,7.7427,202.83,202.79,2.69]
[1755951967629,7.7427,202.83,202.8,5.34343448]
[1755951967929,7.7427,202.83,202.79,2.69]
[1755951968327,4.9327,202.83,202.79,2.69]
[1755951968533,2.81,202.82,202.79,2.69]
[1755951970439,4.9327,202.83,202.77,2.69]
[1755951970741,7.7427,202.83,202.79,2.69]
[1755951970938,7.7427,202.83,202.8,8.03399777]
[1755951971236,7.7427,202.83,202.8,2.69]
[1755951971838,7.7428,202.82,202.76,2.69]
[1755951972041,2.81,202.81,202.78,2.69]
[1755951972233,2.81,202.81,202.79,10.10803455]
[1755951972432,2.81,202.81,202.78,2.69]
[1755951972640,2.81,202.81,202.79,10.10856336]
[1755951972837,2.81,202.81,202.78,2.69]
[1755951973040,2.81,202.81,202.79,10.10856336]
[1755951973341,2.81,202.81,202.8,5.34553963]
[1755951973729,2.81,202.81,202.78,2.69]
[1755951974047,2.81,202.8,202.73,2.69]
[1755951974247,2.81,202.8,202.74,10.1157242]
[1755951974542,2.81,202.79,202.75,10.11617388]
[1755951974738,2.81,202.78,202.76,5.34871442]
[1755951974944,2.81,202.77,202.73,2.69]
[1755951975244,2.81,202.77,202.74,10.11667414]
[1755951975440,6.27098843,202.83,202.75,10.11667414]
[1755951975645,2.81,202.76,202.67,2.69]
[1755951975842,2.81,202.76,202.69,2.69]
[1755951976039,2.81,202.76,202.7,16.14784045]
[1755951976234,2.81,202.75,202.72,2.69]
[1755951976434,4.9342,202.76,202.73,10.11721748]
[1755951976637,4.9342,202.76,202.74,10.11721748]
[1755951976837,4.9342,202.76,202.75,10.11721748]
[1755951977040,4.9342,202.76,202.75,5.34950913]
[1755951977447,7.7442,202.76,202.75,5.34950913]
[1755951981050,7.7442,202.76,202.75,5.35577934]
[1755951981645,7.7442,202.76,202.75,5.35702155]
[1755951984447,7.7442,202.76,202.75,2.155e-05]
[1755951984751,4.9352,202.72,202.66,2.69]
[1755951984945,7.7452,202.72,202.68,2.69]
[1755951986346,2.81,202.71,202.68,2.69]
[1755951988855,7.7455,202.71,202.68,2.69]
[1755951991058,7.7455,202.71,202.65,7.6267]
[1755951991252,2.81,202.7,202.66,7.00670871]
[1755951991456,2.81,202.7,202.67,2.69]
[1755951991954,2.81,202.69,202.66,2.69]
[1755951992157,2.81,202.68,202.65,4.9367]
[1755951992356,2.81,202.68,202.66,2.69]
[1755951992657,4.9357,202.7,202.66,2.69]
[1755951993054,2.81,202.69,202.66,2.69]
[1755951996758,2.81,202.69,202.67,5.14800813]
[1755951996955,2.81,202.69,202.68,5.14800813]
[1755951999155,3.31,202.69,202.59,2.75]
[1755951999360,2.81,202.69,202.55,2.75]
[1755951999558,2.81,202.69,202.56,4.31227746]
[1755951999750,2.81,202.69,202.55,2.75]
[1755951999949,7.5279,202.61,202.57,2.75]
[1755952000454,7.5279,202.61,202.58,2.75]
[1755952001556,2.59,202.61,202.58,2.75]
[1755952002054,4.9369,202.65,202.53,2.75]
[1755952002249,4.9369,202.65,202.59,7.6882]
[1755952003963,7.5272,202.64,202.6,2.75]
[1755952004162,4.9372,202.64,202.6,2.75]
[1755952004358,2.59,202.63,202.6,2.75]
[1755952005466,2.59,202.62,202.54,24.6977]
[1755952005665,2.59,202.62,202.59,2.75]
[1755952005966,2.59,202.68,202.59,2.75]
[1755952006263,2.59,202.68,202.61,2.75]
[1755952007261,2.59,202.68,202.64,2.75]
[1755952008860,2.59,202.69,202.56,2.75]
[1755952009069,2.59,202.69,202.57,4.30314488]
[1755952009263,2.59,202.69,202.58,4.30314488]
[1755952009463,8.86098843,202.67,202.56,2.75]
[1755952009662,8.86098843,202.67,202.57,4.30355373]
[1755952009663,2.59,202.66,202.57,4.30355373]
[1755952009866,2.59,202.66,202.56,2.75]
[1755952010069,24.6847,202.65,202.56,2.75]
[1755952010263,2.59,202.59,202.51,2.75]
[1755952010470,2.59,202.59,202.53,2.75]
[1755952010669,7.5284,202.59,202.55,2.75]
[1755952011170,7.5284,202.59,202.56,5.04230014]
[1755952011475,2.59,202.58,202.57,5.04230014]
[1755952011975,7.5288,202.57,202.53,2.75]
[1755952012173,7.5288,202.57,202.54,9.34791249]
[1755952012375,7.5288,202.57,202.55,5.04288704]
[1755952012565,7.5288,202.57,202.56,5.04288704]
[1755952015871,2.59,202.57,202.56,5.04288704]
[1755952018369,2.59,202.57,202.56,5.01991301]
[1755952020475,2.59,202.59,202.54,2.75]
[1755952020676,7.5281,202.6,202.56,2.75]
[1755952020879,7.5281,202.6,202.57,5.02080086]
[1755952021081,7.5281,202.6,202.5,2.75]
[1755952021277,7.5281,202.6,202.52,2.75]
[1755952021477,7.5281,202.6,202.54,2.75]
[1755952021672,2.59,202.59,202.56,2.75]
[1755952021872,4.9381,202.6,202.57,5.02079806]
[1755952022077,4.9381,202.6,202.56,2.75]
[1755952022373,2.59,202.63,202.57,5.02024577]
[1755952022572,2.59,202.62,202.58,5.02024577]
[1755952022777,4.9374,202.63,202.59,5.01980378]
[1755952022977,4.9374,202.63,202.52,6.27098843]
[1755952022978,4.9374,202.63,202.61,2.75]
[1755952023177,4.9374,202.63,202.52,6.27098843]
[1755952023383,4.9374,202.63,202.54,2.72]
[1755952023577,4.9374,202.63,202.56,2.72]
[1755952023775,4.9374,202.63,202.57,9.3251082]
[1755952023984,7.6476,202.62,202.58,7.74012246]
[1755952024184,7.6476,202.62,202.59,5.02012246]
[1755952024382,7.6476,202.62,202.58,2.72]
[1755952024582,4.9371,202.64,202.6,2.72]
[1755952024780,2.71,202.63,202.6,2.72]
[1755952025186,7.6474,202.63,202.6,2.72]
[1755952025692,2.71,202.62,202.55,4.9391]
[1755952025885,2.71,202.62,202.57,2.72]
[1755952026189,2.71,202.62,202.59,2.72]
[1755952027895,4.9368,202.65,202.6,5.02183087]
[1755952028086,7.6468,202.65,202.61,2.72]
[1755952028289,4.9384,202.59,202.51,4.14274293]
[1755952028497,2.71,202.59,202.56,2.72]
[1755952028791,7.6479,202.61,202.57,7.74382304]
[1755952028992,7.6479,202.61,202.58,5.02382304]
[1755952029192,7.6479,202.61,202.57,2.72]
[1755952029390,2.71,202.6,202.58,5.0245564]
[1755952029590,2.71,202.6,202.57,2.72]
[1755952029794,2.71,202.6,202.58,5.02582199]
[1755952029994,2.71,202.6,202.57,2.72]
[1755952030298,7.6481,202.6,202.58,5.02621353]
[1755952030496,7.6481,202.6,202.57,2.72]
[1755952030697,4.9383,202.59,202.52,2.72]
[1755952030995,4.9383,202.59,202.54,2.72]
[1755952031195,4.9383,202.59,202.56,2.72]
[1755952031394,4.9378,202.61,202.57,5.0269651]
[1755952031595,7.6478,202.61,202.58,2.72]
[1755952031989,7.6478,202.61,202.49,4.14274293]
[1755952032191,7.6478,202.61,202.55,2.72]
[1755952032390,4.9381,202.6,202.57,2.72]
[1755952033194,7.6481,202.6,202.57,2.72]
[1755952034598,2.71,202.59,202.52,4.9398]
[1755952034797,2.71,202.59,202.55,2.72]
[1755952034998,2.71,202.59,202.56,5.03050608]
[1755952035199,7.6483,202.59,202.55,2.72]
[1755952035399,2.71,202.58,202.56,5.0309219]
[1755952035596,2.71,202.58,202.57,5.0309219]
[1755952035791,2.71,202.58,202.52,4.9398]
[1755952035792,2.71,202.58,202.52,2.72]
[1755952035992,2.71,202.61,202.53,11.06233564]
[1755952036198,2.71,202.61,202.54,5.03224888]
[1755952036397,2.71,202.61,202.55,5.03413904]
[1755952036598,2.71,202.61,202.5,2.72]
[1755952036797,2.71,202.61,202.51,11.06652281]
[1755952036999,2.71,202.61,202.52,11.06652281]
[1755952037301,2.71,202.6,202.53,9.35000564]
[1755952037598,2.71,202.6,202.54,5.03413904]
[1755952037790,2.71,202.59,202.55,5.03413904]
[1755952037993,2.71,202.59,202.5,2.72]
[1755952038197,2.71,202.59,202.51,11.06317388]
[1755952038396,2.71,202.59,202.52,11.06317388]
[1755952038597,4.939,202.57,202.53,9.35203218]
[1755952038907,2.71,202.57,202.54,7.7552924]
[1755952039094,2.71,202.57,202.55,5.0352924]
[1755952039293,2.71,202.57,202.56,5.03736013]
[1755952040898,7.6486,202.58,202.56,5.03736013]
[1755952041100,7.6486,202.58,202.54,2.72]
[1755952041300,2.71,202.57,202.55,5.03982456]
[1755952041605,2.71,202.57,202.56,5.03982456]
[1755952043999,2.71,202.57,202.48,4.14274293]
[1755952044308,4.9394,202.55,202.49,13.8031382]
[1755952044507,7.6494,202.55,202.51,2.72]
[1755952044702,7.6494,202.55,202.52,11.0831382]
[1755952044903,7.6494,202.55,202.53,9.36888026]
[1755952045103,7.6494,202.55,202.54,5.0444237]
[1755952045903,7.6494,202.55,202.54,5.02195525]
[1755952046303,7.6494,202.55,202.54,5.02149587]
[1755952048112,4.9388,202.57,202.54,5.02149587]
[1755952048311,4.9388,202.57,202.51,2.72]
[1755952048312,2.71,202.56,202.46,10.41373136]
[1755952048509,2.71,202.56,202.52,2.72]
[1755952048710,2.71,202.55,202.53,5.02164913]
[1755952048911,30.95888843,202.62,202.55,2.72]
[1755952049213,2.71,202.59,202.56,5.0206812]
[1755952049409,2.71,202.59,202.52,2.72]
[1755952049613,2.71,202.64,202.54,2.72]
[1755952049810,124.25,202.64,202.55,11.0585067]
[1755952050008,124.25,202.64,202.56,13.7785067]
[1755952050209,124.25,202.64,202.57,6.7350089]
[1755952050410,124.25,202.64,202.58,5.02090687]
[1755952050604,124.25,202.64,202.56,2.72]
[1755952050810,124.25,202.64,202.6,2.72]
[1755952051211,124.25,202.64,202.52,4.14274293]
[1755952051212,124.25,202.64,202.53,2.72]
[1755952051413,129.1871,202.64,202.57,2.72]
[1755952051610,129.1871,202.64,202.58,11.19779828]
[1755952051809,2.71,202.63,202.6,2.72]
[1755952052008,4.9365,202.66,202.61,5.01984743]
[1755952052210,2.71,202.65,202.62,5.01984743]
[1755952052406,2.71,202.65,202.61,2.72]
[1755952052611,2.71,202.65,202.62,5.02087593]
[1755952052812,2.71,202.65,202.61,2.72]
[1755952053013,2.71,202.65,202.62,5.02087593]
[1755952053213,2.71,202.65,202.61,2.72]
[1755952053420,2.72,202.64,202.62,5.02357686]
[1755952053617,2.72,202.64,202.61,2.72]
[1755952053817,2.72,202.64,202.62,5.02357686]